[Event "*** Titled Tuesday Blitz"]
[Site "Chess.com"]
[Date "2021.03.09"]
[Round "5"]
[White "Margency"]
[Black "rpragchess"]
[Result "0-1"]
[WhiteElo "2708"]
[BlackElo "2920"]
[TimeControl "180+1"]
[EndTime "10:59:52 PST"]
[Termination "rpragchess won by checkmate"]

1. e4 {[%clk 0:03:00.9]} 1... c5 {[%clk 0:02:56.7]} 2. Nf3 {[%clk 0:03:01.4]}
2... e6 {[%clk 0:02:55.9]} 3. d4 {[%clk 0:03:01.7]} 3... cxd4 {[%clk 0:02:56.8]}
4. Nxd4 {[%clk 0:03:02.4]} 4... a6 {[%clk 0:02:57]} 5. c4 {[%clk 0:03:02.7]}
5... Nf6 {[%clk 0:02:56.9]} 6. Nc3 {[%clk 0:03:03.1]} 6... Qc7 {[%clk
0:02:57.4]} 7. a3 {[%clk 0:03:02.8]} 7... b6 {[%clk 0:02:57.5]} 8. Be3 {[%clk
0:03:02]} 8... Bb7 {[%clk 0:02:57.8]} 9. f3 {[%clk 0:03:02.5]} 9... Be7 {[%clk
0:02:58.3]} 10. Be2 {[%clk 0:03:02.9]} 10... d6 {[%clk 0:02:58.8]} 11. O-O
{[%clk 0:03:02.7]} 11... Nbd7 {[%clk 0:02:59.5]} 12. Qd2 {[%clk 0:03:03.1]}
12... O-O {[%clk 0:02:59.9]} 13. Rfc1 {[%clk 0:03:03.4]} 13... Rac8 {[%clk
0:03:00.5]} 14. Rc2 {[%clk 0:03:03.5]} 14... Qb8 {[%clk 0:02:57.1]} 15. Rb1
{[%clk 0:03:03.6]} 15... Bd8 {[%clk 0:02:30.2]} 16. Kh1 {[%clk 0:03:03]} 16...
Bc7 {[%clk 0:02:30.5]} 17. Bg1 {[%clk 0:03:03.6]} 17... h5 {[%clk 0:02:26]} 18.
Qe1 {[%clk 0:02:53.3]} 18... Rfe8 {[%clk 0:02:22.8]} 19. b4 {[%clk 0:02:38.5]}
19... d5 {[%clk 0:01:56.8]} 20. exd5 {[%clk 0:02:38.4]} 20... exd5 {[%clk
0:01:56.8]} 21. c5 {[%clk 0:02:39]} 21... bxc5 {[%clk 0:01:45.5]} 22. bxc5
{[%clk 0:02:39]} 22... Nxc5 {[%clk 0:01:44.3]} 23. Qh4 {[%clk 0:02:06]} 23...
Be5 {[%clk 0:01:34.2]} 24. Rcb2 {[%clk 0:01:53.1]} 24... Qc7 {[%clk 0:01:27.2]}
25. Na4 {[%clk 0:01:37.9]} 25... Nxa4 {[%clk 0:01:01.5]} 26. Rxb7 {[%clk
0:01:37.8]} 26... Qd8 {[%clk 0:01:01.4]} 27. Nf5 {[%clk 0:01:08.1]} 27... Nc5
{[%clk 0:00:39]} 28. Qg5 {[%clk 0:00:51.4]} 28... Nfd7 {[%clk 0:00:14.8]} 29.
Nh6+ {[%clk 0:00:32.2]} 29... Kh7 {[%clk 0:00:08.5]} 30. Qf5+ {[%clk 0:00:27.2]}
30... Kxh6 {[%clk 0:00:06.8]} 31. Be3+ {[%clk 0:00:24]} 31... g5 {[%clk
0:00:06.8]} 32. h4 {[%clk 0:00:23.9]} 32... Kg7 {[%clk 0:00:06.5]} 33. Bxg5
{[%clk 0:00:18.3]} 33... Bf6 {[%clk 0:00:06.5]} 34. Bd3 {[%clk 0:00:12.2]} 34...
Re5 {[%clk 0:00:02.4]} 35. Qh7+ {[%clk 0:00:11.8]} 35... Kf8 {[%clk 0:00:02.8]}
36. Bh6+ {[%clk 0:00:11.5]} 36... Ke7 {[%clk 0:00:03.3]} 37. Bf5 {[%clk
0:00:10.2]} 37... Qg8 {[%clk 0:00:03.1]} 38. Qxg8 {[%clk 0:00:08.2]} 38... Rxg8
{[%clk 0:00:04]} 39. Bh3 {[%clk 0:00:07.7]} 39... Rc8 {[%clk 0:00:03.1]} 40. Ra7
{[%clk 0:00:07.8]} 40... Rc6 {[%clk 0:00:02.6]} 41. Rd1 {[%clk 0:00:08.2]} 41...
Ne6 {[%clk 0:00:02.1]} 42. Bd2 {[%clk 0:00:06.3]} 42... Re2 {[%clk 0:00:02.5]}
43. Bb4+ {[%clk 0:00:06.8]} 43... Ke8 {[%clk 0:00:02.4]} 44. Ra8+ {[%clk
0:00:07.1]} 44... Bd8 {[%clk 0:00:02.5]} 45. Bxe6 {[%clk 0:00:07.2]} 45... fxe6
{[%clk 0:00:02.7]} 46. Ba5 {[%clk 0:00:07.1]} 46... Nb6 {[%clk 0:00:03]} 47. Rb1
{[%clk 0:00:07]} 47... Nxa8 {[%clk 0:00:02.7]} 48. Rb8 {[%clk 0:00:06.2]} 48...
Re1+ {[%clk 0:00:02.2]} 49. Kh2 {[%clk 0:00:06.1]} 49... Nc7 {[%clk 0:00:02.7]}
50. Rc8 {[%clk 0:00:06.1]} 50... Kd7 {[%clk 0:00:02.7]} 51. Rb8 {[%clk
0:00:06.1]} 51... Nb5 {[%clk 0:00:02.8]} 52. Rxd8+ {[%clk 0:00:05.5]} 52... Ke7
{[%clk 0:00:03.4]} 53. Rh8 {[%clk 0:00:05.7]} 53... Ra1 {[%clk 0:00:03.5]} 54.
Rxh5 {[%clk 0:00:04.6]} 54... Nd6 {[%clk 0:00:03.9]} 55. Bb4 {[%clk 0:00:04.8]}
55... Kf7 {[%clk 0:00:04.1]} 56. Rh7+ {[%clk 0:00:04.5]} 56... Kg6 {[%clk
0:00:04.6]} 57. Rd7 {[%clk 0:00:05.4]} 57... Nf5 {[%clk 0:00:04]} 58. Kh3 {[%clk
0:00:05.5]} 58... Rh1+ {[%clk 0:00:03.3]} 59. Kg4 {[%clk 0:00:05.8]} 59... Rxh4#
{[%clk 0:00:04.2]} 0-1

[Event "*** Titled Tuesday Blitz"]
[Site "Chess.com"]
[Date "2021.03.09"]
[Round "5"]
[White "Vsevolod_Ovchinnikov"]
[Black "Durarbayli"]
[Result "1-0"]
[WhiteElo "2512"]
[BlackElo "2672"]
[TimeControl "180+1"]
[EndTime "10:59:52 PST"]
[Termination "Vsevolod_Ovchinnikov won by resignation"]

1. d4 {[%clk 0:02:58.4]} 1... d5 {[%clk 0:03:00.2]} 2. c4 {[%clk 0:02:58.3]}
2... c6 {[%clk 0:03:00.4]} 3. Nf3 {[%clk 0:02:57.8]} 3... Nf6 {[%clk 0:03:00.5]}
4. g3 {[%clk 0:02:58.4]} 4... g6 {[%clk 0:02:56.9]} 5. Bg2 {[%clk 0:02:58.8]}
5... Bg7 {[%clk 0:02:57.3]} 6. Qb3 {[%clk 0:02:53.5]} 6... O-O {[%clk
0:02:50.6]} 7. O-O {[%clk 0:02:52.6]} 7... a5 {[%clk 0:02:50.2]} 8. cxd5 {[%clk
0:02:20.4]} 8... a4 {[%clk 0:02:48.5]} 9. Qd1 {[%clk 0:02:20.3]} 9... cxd5
{[%clk 0:02:47.9]} 10. Nc3 {[%clk 0:02:20.8]} 10... Nc6 {[%clk 0:02:43.1]} 11.
Nxa4 {[%clk 0:02:17.3]} 11... Ne4 {[%clk 0:02:27.9]} 12. Nc3 {[%clk 0:02:16.8]}
12... Bf5 {[%clk 0:02:24.8]} 13. e3 {[%clk 0:02:13.3]} 13... Nxc3 {[%clk
0:02:13.1]} 14. bxc3 {[%clk 0:02:14.2]} 14... Qa5 {[%clk 0:02:13.3]} 15. Bd2
{[%clk 0:02:08.2]} 15... Qa6 {[%clk 0:02:05.9]} 16. Re1 {[%clk 0:01:54.2]} 16...
Rfc8 {[%clk 0:01:59.5]} 17. Bf1 {[%clk 0:01:42.5]} 17... Bd3 {[%clk 0:01:58.7]}
18. Bxd3 {[%clk 0:01:38.8]} 18... Qxd3 {[%clk 0:01:59.6]} 19. Qe2 {[%clk
0:01:39.2]} 19... Qe4 {[%clk 0:01:53.3]} 20. Ng5 {[%clk 0:01:25.7]} 20... Qf5
{[%clk 0:01:50.9]} 21. e4 {[%clk 0:01:25.5]} 21... dxe4 {[%clk 0:01:48.7]} 22.
Qxe4 {[%clk 0:01:25.7]} 22... e6 {[%clk 0:01:29.9]} 23. Qxf5 {[%clk 0:01:23.4]}
23... gxf5 {[%clk 0:01:30.8]} 24. Reb1 {[%clk 0:01:21.7]} 24... Nxd4 {[%clk
0:01:14.4]} 25. Rxb7 {[%clk 0:01:02.8]} 25... Ne2+ {[%clk 0:00:50.6]} 26. Kf1
{[%clk 0:01:02.7]} 26... Nxc3 {[%clk 0:00:48]} 27. Bxc3 {[%clk 0:00:56.6]} 27...
Rxc3 {[%clk 0:00:36.4]} 28. Rd1 {[%clk 0:00:43.3]} 28... Bf6 {[%clk 0:00:15.8]}
29. Nxf7 {[%clk 0:00:33.8]} 29... Bg7 {[%clk 0:00:06.9]} 30. Rd8+ {[%clk
0:00:27.9]} 30... Rxd8 {[%clk 0:00:05.8]} 31. Nxd8 {[%clk 0:00:28.8]} 31... e5
{[%clk 0:00:04.6]} 32. Ne6 {[%clk 0:00:27]} 32... Bf6 {[%clk 0:00:05]} 33. a4
{[%clk 0:00:20.1]} 33... Ra3 {[%clk 0:00:03.7]} 34. Ra7 {[%clk 0:00:17.4]} 34...
f4 {[%clk 0:00:02.5]} 35. gxf4 {[%clk 0:00:16.7]} 35... exf4 {[%clk 0:00:03.4]}
36. Nxf4 {[%clk 0:00:16.1]} 36... Bd4 {[%clk 0:00:04]} 37. Ra8+ {[%clk
0:00:15.5]} 37... Kf7 {[%clk 0:00:02.8]} 38. Kg2 {[%clk 0:00:14.9]} 38... Ra2
{[%clk 0:00:02.8]} 39. Nh3 {[%clk 0:00:14.4]} 39... Kg6 {[%clk 0:00:02]} 40. a5
{[%clk 0:00:14.8]} 40... Kf5 {[%clk 0:00:02.3]} 41. a6 {[%clk 0:00:15.2]} 41...
h6 {[%clk 0:00:02.6]} 42. Kg3 {[%clk 0:00:12]} 42... Ke4 {[%clk 0:00:01.7]} 43.
Kg4 {[%clk 0:00:09.5]} 43... Ra3 {[%clk 0:00:02.6]} 44. Re8+ {[%clk 0:00:07.8]}
44... Kd5 {[%clk 0:00:02.7]} 45. Nf4+ {[%clk 0:00:07.9]} 45... Kc4 {[%clk
0:00:03]} 46. Re6 {[%clk 0:00:08.1]} 46... h5+ {[%clk 0:00:02.5]} 47. Nxh5
{[%clk 0:00:07.7]} 47... Bxf2 {[%clk 0:00:03.1]} 48. Nf4 {[%clk 0:00:08]} 48...
Ra4 {[%clk 0:00:02.2]} 49. Re4+ {[%clk 0:00:07.2]} 49... Bd4 {[%clk 0:00:02.8]}
50. Ne6 {[%clk 0:00:06.6]} 50... Rxa6 {[%clk 0:00:02.6]} 51. Rxd4+ {[%clk
0:00:07.5]} 51... Kc3 {[%clk 0:00:03]} 52. Re4 {[%clk 0:00:07.6]} 52... Kd3
{[%clk 0:00:03.9]} 53. Kf5 {[%clk 0:00:08.1]} 53... Ra2 {[%clk 0:00:04.8]} 54.
h4 {[%clk 0:00:07.9]} 54... Rf2+ {[%clk 0:00:05.1]} 55. Nf4+ {[%clk 0:00:08.5]}
55... Kc3 {[%clk 0:00:05.3]} 56. h5 {[%clk 0:00:09.1]} 56... Rh2 {[%clk
0:00:05.8]} 57. Kg6 {[%clk 0:00:09]} 57... Rh4 {[%clk 0:00:04.9]} 58. Kg5 {[%clk
0:00:08.4]} 58... Rh1 {[%clk 0:00:04.7]} 59. h6 {[%clk 0:00:08.9]} 59... Rg1+
{[%clk 0:00:05.3]} 60. Kf6 {[%clk 0:00:09.5]} 60... Rh1 {[%clk 0:00:05.4]} 61.
Kg7 {[%clk 0:00:10]} 1-0

[Event "*** Titled Tuesday Blitz"]
[Site "Chess.com"]
[Date "2021.03.09"]
[Round "5"]
[White "Orest_Vovk"]
[Black "Mikhail_Golubev"]
[Result "1/2-1/2"]
[WhiteElo "2437"]
[BlackElo "2577"]
[TimeControl "180+1"]
[EndTime "10:59:52 PST"]
[Termination "Game drawn - insufficient material"]

1. h3 {[%clk 0:02:59.3]} 1... g6 {[%clk 0:02:17.9]} 2. d4 {[%clk 0:02:51.3]}
2... Bg7 {[%clk 0:02:18.8]} 3. Nf3 {[%clk 0:02:51.5]} 3... Nf6 {[%clk
0:02:13.4]} 4. Bg5 {[%clk 0:02:51.5]} 4... O-O {[%clk 0:02:05.9]} 5. Nbd2 {[%clk
0:02:51.3]} 5... d6 {[%clk 0:02:04.6]} 6. e3 {[%clk 0:02:48.9]} 6... Nbd7 {[%clk
0:02:01.8]} 7. Bc4 {[%clk 0:02:43.9]} 7... h6 {[%clk 0:01:59.4]} 8. Bh4 {[%clk
0:02:36.9]} 8... e5 {[%clk 0:01:59.1]} 9. dxe5 {[%clk 0:02:34.3]} 9... dxe5
{[%clk 0:01:57.3]} 10. O-O {[%clk 0:02:32.1]} 10... Qe7 {[%clk 0:01:55.4]} 11.
Ne4 {[%clk 0:02:22.1]} 11... b6 {[%clk 0:01:16.9]} 12. Qe2 {[%clk 0:01:59.5]}
12... Bb7 {[%clk 0:01:13.4]} 13. Nxf6+ {[%clk 0:01:57.2]} 13... Bxf6 {[%clk
0:01:11]} 14. Bxf6 {[%clk 0:01:56.1]} 14... Nxf6 {[%clk 0:01:09.7]} 15. Ba6
{[%clk 0:01:50.7]} 15... Bd5 {[%clk 0:01:06.2]} 16. Rfd1 {[%clk 0:01:41.4]}
16... Rad8 {[%clk 0:01:03.7]} 17. Bc4 {[%clk 0:01:13.7]} 17... Bb7 {[%clk
0:01:01.5]} 18. Rxd8 {[%clk 0:01:09.6]} 18... Rxd8 {[%clk 0:01:00.2]} 19. Rd1
{[%clk 0:01:08.9]} 19... Rxd1+ {[%clk 0:00:54.6]} 20. Qxd1 {[%clk 0:01:08.8]}
20... Kg7 {[%clk 0:00:54.4]} 21. c3 {[%clk 0:00:50.3]} 21... a5 {[%clk
0:00:47.7]} 22. a3 {[%clk 0:00:41]} 22... Ne4 {[%clk 0:00:47]} 23. Bd5 {[%clk
0:00:34.4]} 23... Qd6 {[%clk 0:00:39.5]} 24. Bb3 {[%clk 0:00:34.3]} 24... Qxd1+
{[%clk 0:00:38.7]} 25. Bxd1 {[%clk 0:00:34.3]} 25... Kf6 {[%clk 0:00:38.6]} 26.
Bc2 {[%clk 0:00:33.6]} 26... Nd6 {[%clk 0:00:36.3]} 27. Nd2 {[%clk 0:00:33.4]}
27... Bd5 {[%clk 0:00:33.1]} 28. f3 {[%clk 0:00:32.9]} 28... c5 {[%clk
0:00:30.9]} 29. Kf2 {[%clk 0:00:30.1]} 29... Ke6 {[%clk 0:00:29.5]} 30. g4
{[%clk 0:00:29.4]} 30... f5 {[%clk 0:00:28.9]} 31. f4 {[%clk 0:00:28.2]} 31...
exf4 {[%clk 0:00:26.7]} 32. exf4 {[%clk 0:00:28.3]} 32... g5 {[%clk 0:00:25.4]}
33. fxg5 {[%clk 0:00:21]} 33... hxg5 {[%clk 0:00:24.7]} 34. Bxf5+ {[%clk
0:00:19.9]} 34... Nxf5 {[%clk 0:00:24.6]} 35. gxf5+ {[%clk 0:00:20.8]} 35...
Kxf5 {[%clk 0:00:25]} 36. Kg3 {[%clk 0:00:20.7]} 36... Kf6 {[%clk 0:00:23.3]}
37. Nf1 {[%clk 0:00:17]} 37... Kg6 {[%clk 0:00:20]} 38. Ne3 {[%clk 0:00:17]}
38... Be6 {[%clk 0:00:19.9]} 39. b4 {[%clk 0:00:14.6]} 39... axb4 {[%clk
0:00:18.3]} 40. axb4 {[%clk 0:00:14.3]} 40... cxb4 {[%clk 0:00:14.8]} 41. cxb4
{[%clk 0:00:15.2]} 41... Kf6 {[%clk 0:00:15.2]} 42. h4 {[%clk 0:00:09.3]} 42...
gxh4+ {[%clk 0:00:14.7]} 43. Kxh4 {[%clk 0:00:10.2]} 43... Ke5 {[%clk
0:00:15.2]} 44. Kg5 {[%clk 0:00:10.5]} 44... Kd4 {[%clk 0:00:14.9]} 45. Ng2
{[%clk 0:00:07.9]} 45... Kc3 {[%clk 0:00:13.6]} 46. Kf4 {[%clk 0:00:06.2]} 46...
Kxb4 {[%clk 0:00:11.8]} 47. Ke3 {[%clk 0:00:06.5]} 47... Kc3 {[%clk 0:00:10.9]}
48. Nf4 {[%clk 0:00:06.1]} 48... Bc4 {[%clk 0:00:11]} 49. Ng6 {[%clk 0:00:04.6]}
49... b5 {[%clk 0:00:11.2]} 50. Ne5 {[%clk 0:00:03.7]} 50... b4 {[%clk
0:00:11.5]} 51. Nf3 {[%clk 0:00:03.9]} 51... b3 {[%clk 0:00:10.5]} 52. Nd2
{[%clk 0:00:04]} 52... b2 {[%clk 0:00:10.2]} 53. Nb1+ {[%clk 0:00:03.9]} 53...
Kc2 {[%clk 0:00:08.9]} 54. Na3+ {[%clk 0:00:03.8]} 54... Kb3 {[%clk 0:00:04.3]}
55. Nb1 {[%clk 0:00:04]} 55... Kc2 {[%clk 0:00:03.6]} 56. Na3+ {[%clk
0:00:03.5]} 56... Kc1 {[%clk 0:00:03.4]} 57. Kd4 {[%clk 0:00:03.5]} 57... Ba2
{[%clk 0:00:03.5]} 58. Kc3 {[%clk 0:00:03.7]} 58... b1=Q {[%clk 0:00:03.8]} 59.
Nxb1 {[%clk 0:00:03.3]} 1/2-1/2

[Event "*** Titled Tuesday Blitz"]
[Site "Chess.com"]
[Date "2021.03.09"]
[Round "5"]
[White "vladimirdamjanovic"]
[Black "Andrii_Prydun"]
[Result "1/2-1/2"]
[WhiteElo "2453"]
[BlackElo "2280"]
[TimeControl "180+1"]
[EndTime "10:59:54 PST"]
[Termination "Game drawn - insufficient material"]

1. d4 {[%clk 0:03:00.9]} 1... d5 {[%clk 0:02:56.4]} 2. Nc3 {[%clk 0:02:58.1]}
2... Nf6 {[%clk 0:02:55.3]} 3. Bf4 {[%clk 0:02:58.2]} 3... e6 {[%clk 0:02:53.9]}
4. Nb5 {[%clk 0:02:57.6]} 4... Na6 {[%clk 0:02:53.6]} 5. e3 {[%clk 0:02:53.4]}
5... c6 {[%clk 0:02:53]} 6. Nc3 {[%clk 0:02:53.3]} 6... Nb8 {[%clk 0:02:52.7]}
7. Nf3 {[%clk 0:02:50.6]} 7... Bd6 {[%clk 0:02:50.8]} 8. Bd3 {[%clk 0:02:51.1]}
8... Bxf4 {[%clk 0:02:49.2]} 9. exf4 {[%clk 0:02:52]} 9... c5 {[%clk 0:02:47.8]}
10. dxc5 {[%clk 0:02:50.6]} 10... Nbd7 {[%clk 0:02:44.1]} 11. Bb5 {[%clk
0:02:29.9]} 11... O-O {[%clk 0:02:43.4]} 12. Qd4 {[%clk 0:02:22.8]} 12... Qc7
{[%clk 0:02:25.4]} 13. Bxd7 {[%clk 0:01:44.4]} 13... Nxd7 {[%clk 0:02:20]} 14.
O-O {[%clk 0:00:41.2]} 14... Nxc5 {[%clk 0:02:09.2]} 15. Nb5 {[%clk 0:00:26.1]}
15... Qb6 {[%clk 0:02:09.1]} 16. a4 {[%clk 0:00:24.4]} 16... Bd7 {[%clk
0:02:04.8]} 17. b4 {[%clk 0:00:04.1]} 17... Nxa4 {[%clk 0:02:04.8]} 18. Qxb6
{[%clk 0:00:01.4]} 18... Nxb6 {[%clk 0:02:04.1]} 19. Nd6 {[%clk 0:00:01.5]}
19... Rfb8 {[%clk 0:02:01.3]} 20. Nd4 {[%clk 0:00:01.6]} 20... Nc8 {[%clk
0:02:00.7]} 21. Nxc8 {[%clk 0:00:01.5]} 21... Rxc8 {[%clk 0:02:00.7]} 22. Ra3
{[%clk 0:00:02]} 22... Rc4 {[%clk 0:02:00.2]} 23. c3 {[%clk 0:00:02.6]} 23... a6
{[%clk 0:01:58.2]} 24. Rfa1 {[%clk 0:00:03]} 24... Rac8 {[%clk 0:01:57.7]} 25.
g4 {[%clk 0:00:03]} 25... Rxc3 {[%clk 0:01:57.3]} 26. Rxc3 {[%clk 0:00:03]}
26... Rxc3 {[%clk 0:01:57.7]} 27. b5 {[%clk 0:00:03.9]} 27... h6 {[%clk
0:01:39]} 28. bxa6 {[%clk 0:00:03.7]} 28... bxa6 {[%clk 0:01:39.5]} 29. Rxa6
{[%clk 0:00:02.9]} 29... Rc4 {[%clk 0:01:39.9]} 30. Ne2 {[%clk 0:00:02.4]} 30...
Bb5 {[%clk 0:01:40]} 31. Ra8+ {[%clk 0:00:02.6]} 31... Kh7 {[%clk 0:01:39.8]}
32. Kg2 {[%clk 0:00:01.9]} 32... Re4 {[%clk 0:01:37.9]} 33. Nc3 {[%clk
0:00:01.8]} 33... Rb4 {[%clk 0:01:35.7]} 34. Nxb5 {[%clk 0:00:01.4]} 34... Rxb5
{[%clk 0:01:35.5]} 35. h4 {[%clk 0:00:02.1]} 35... h5 {[%clk 0:01:33.7]} 36.
gxh5 {[%clk 0:00:01.7]} 36... Rb3 {[%clk 0:01:32.3]} 37. f3 {[%clk 0:00:01.8]}
37... Rb7 {[%clk 0:01:29.7]} 38. Kg3 {[%clk 0:00:01.8]} 38... Rd7 {[%clk
0:01:27.8]} 39. Kg4 {[%clk 0:00:01.6]} 39... d4 {[%clk 0:01:27.2]} 40. Ra2
{[%clk 0:00:02.3]} 40... Kh6 {[%clk 0:01:25.9]} 41. Rd2 {[%clk 0:00:03.2]} 41...
f5+ {[%clk 0:01:24.1]} 42. Kh3 {[%clk 0:00:01.4]} 42... Kxh5 {[%clk 0:01:25]}
43. Kg3 {[%clk 0:00:02.3]} 43... Rd5 {[%clk 0:01:21.3]} 44. Rd3 {[%clk
0:00:02.1]} 44... Kg6 {[%clk 0:01:21]} 45. Kh3 {[%clk 0:00:01.8]} 45... Kf6
{[%clk 0:01:21.9]} 46. h5 {[%clk 0:00:02.3]} 46... e5 {[%clk 0:01:21.2]} 47.
fxe5+ {[%clk 0:00:02.9]} 47... Kxe5 {[%clk 0:01:21.7]} 48. Kg3 {[%clk
0:00:03.5]} 48... Kd6 {[%clk 0:01:21.7]} 49. Kf4 {[%clk 0:00:03.9]} 49... Kc5
{[%clk 0:01:21.1]} 50. Kg5 {[%clk 0:00:04.3]} 50... Kc4 {[%clk 0:01:21.3]} 51.
Rd1 {[%clk 0:00:04.5]} 51... d3 {[%clk 0:01:21.4]} 52. Kg6 {[%clk 0:00:05.1]}
52... Rd7 {[%clk 0:01:17.2]} 53. Kxf5 {[%clk 0:00:05.3]} 53... d2 {[%clk
0:01:16.7]} 54. Kg6 {[%clk 0:00:05.5]} 54... Kc3 {[%clk 0:01:16.9]} 55. f4
{[%clk 0:00:05]} 55... Kd3 {[%clk 0:00:53.9]} 56. f5 {[%clk 0:00:02.2]} 56...
Ke4 {[%clk 0:00:52.3]} 57. f6 {[%clk 0:00:02.5]} 57... gxf6 {[%clk 0:00:50.8]}
58. Kxf6 {[%clk 0:00:03.4]} 58... Ke3 {[%clk 0:00:09.1]} 59. h6 {[%clk
0:00:02.2]} 59... Rd6+ {[%clk 0:00:09.2]} 60. Kg7 {[%clk 0:00:02.3]} 60... Rxh6
{[%clk 0:00:10.1]} 61. Kxh6 {[%clk 0:00:02.4]} 61... Ke2 {[%clk 0:00:11]} 62.
Rh1 {[%clk 0:00:02.7]} 62... d1=Q {[%clk 0:00:11.2]} 63. Rxd1 {[%clk 0:00:03.3]}
63... Kxd1 {[%clk 0:00:11.8]} 1/2-1/2

[Event "*** Titled Tuesday Blitz"]
[Site "Chess.com"]
[Date "2021.03.09"]
[Round "5"]
[White "ikhasu"]
[Black "alejogarcia1999"]
[Result "1-0"]
[WhiteElo "2400"]
[BlackElo "2510"]
[TimeControl "180+1"]
[EndTime "10:59:55 PST"]
[Termination "ikhasu won by resignation"]

1. d4 {[%clk 0:02:42.5]} 1... Nf6 {[%clk 0:02:54.7]} 2. Bf4 {[%clk 0:02:41.9]}
2... g6 {[%clk 0:02:54.5]} 3. Nc3 {[%clk 0:02:41.7]} 3... d5 {[%clk 0:02:53.7]}
4. e3 {[%clk 0:02:40.4]} 4... c6 {[%clk 0:02:53.4]} 5. h4 {[%clk 0:02:39.3]}
5... h6 {[%clk 0:02:51.2]} 6. Be2 {[%clk 0:02:30.9]} 6... Qb6 {[%clk 0:02:45.8]}
7. Rb1 {[%clk 0:01:45.4]} 7... Bg7 {[%clk 0:02:44.5]} 8. Nf3 {[%clk 0:01:44.9]}
8... Bg4 {[%clk 0:02:42.7]} 9. Ne5 {[%clk 0:01:43.7]} 9... Bxe2 {[%clk
0:02:42.3]} 10. Qxe2 {[%clk 0:01:43.6]} 10... Nbd7 {[%clk 0:02:41]} 11. O-O
{[%clk 0:01:43.1]} 11... O-O {[%clk 0:02:39]} 12. Rfd1 {[%clk 0:01:38.9]} 12...
Nxe5 {[%clk 0:02:36.2]} 13. Bxe5 {[%clk 0:01:38.4]} 13... Nd7 {[%clk 0:02:31.8]}
14. Bxg7 {[%clk 0:01:37.7]} 14... Kxg7 {[%clk 0:02:32.5]} 15. e4 {[%clk
0:01:38.2]} 15... e6 {[%clk 0:02:08.5]} 16. Qf3 {[%clk 0:01:30.5]} 16... Qd8
{[%clk 0:02:01]} 17. e5 {[%clk 0:01:27]} 17... Qxh4 {[%clk 0:01:59.3]} 18. g3
{[%clk 0:01:27]} 18... Qg5 {[%clk 0:01:58]} 19. Kg2 {[%clk 0:01:26.6]} 19... h5
{[%clk 0:01:57.9]} 20. Rh1 {[%clk 0:01:26.2]} 20... f6 {[%clk 0:01:54.8]} 21.
exf6+ {[%clk 0:01:24.8]} 21... Rxf6 {[%clk 0:01:54.6]} 22. Qe2 {[%clk
0:01:25.4]} 22... Raf8 {[%clk 0:01:53.8]} 23. Rbf1 {[%clk 0:01:25.2]} 23... e5
{[%clk 0:01:44.5]} 24. dxe5 {[%clk 0:01:23.5]} 24... Qxe5 {[%clk 0:01:44.3]} 25.
Qd2 {[%clk 0:01:16.8]} 25... d4 {[%clk 0:01:39.8]} 26. f4 {[%clk 0:01:16.2]}
26... Qd6 {[%clk 0:01:29.4]} 27. Ne2 {[%clk 0:01:06.8]} 27... c5 {[%clk
0:01:26.5]} 28. Ng1 {[%clk 0:00:58.8]} 28... Nb6 {[%clk 0:01:26]} 29. b3 {[%clk
0:00:58]} 29... Nd5 {[%clk 0:01:25.2]} 30. Re1 {[%clk 0:00:57.5]} 30... Ne3+
{[%clk 0:01:24.4]} 31. Kh2 {[%clk 0:00:56.5]} 31... h4 {[%clk 0:01:18.8]} 32.
Nh3 {[%clk 0:00:50.4]} 32... Ng4+ {[%clk 0:01:07.7]} 33. Kg1 {[%clk 0:00:47.6]}
33... hxg3 {[%clk 0:00:59.6]} 34. Ng5 {[%clk 0:00:44.1]} 34... Qxf4 {[%clk
0:00:39]} 35. Qxf4 {[%clk 0:00:41.8]} 35... Rxf4 {[%clk 0:00:38.6]} 36. Ne6+
{[%clk 0:00:35.3]} 36... Kg8 {[%clk 0:00:26.5]} 37. Nxf4 {[%clk 0:00:34.8]}
37... Rxf4 {[%clk 0:00:27.4]} 38. Re8+ {[%clk 0:00:34.8]} 38... Kf7 {[%clk
0:00:26.8]} 39. Rhh8 {[%clk 0:00:33.2]} 39... Rf2 {[%clk 0:00:19.3]} 40. Rhf8+
{[%clk 0:00:30.6]} 40... Kg7 {[%clk 0:00:19.6]} 41. Rxf2 {[%clk 0:00:29.7]}
41... gxf2+ {[%clk 0:00:19.6]} 42. Kg2 {[%clk 0:00:29.2]} 42... Kf7 {[%clk
0:00:19.4]} 43. Rb8 {[%clk 0:00:29]} 43... Ne3+ {[%clk 0:00:19.6]} 44. Kxf2
{[%clk 0:00:29]} 44... Nxc2 {[%clk 0:00:20.5]} 45. Rxb7+ {[%clk 0:00:29.3]}
45... Ke6 {[%clk 0:00:21.4]} 46. Ke2 {[%clk 0:00:28.4]} 46... a6 {[%clk
0:00:20.3]} 47. Rb6+ {[%clk 0:00:27.6]} 47... Kd5 {[%clk 0:00:20.6]} 48. Rxa6
{[%clk 0:00:26.5]} 48... g5 {[%clk 0:00:20.3]} 49. Rg6 {[%clk 0:00:26.2]} 49...
g4 {[%clk 0:00:19.6]} 50. Rxg4 {[%clk 0:00:25.7]} 50... Nb4 {[%clk 0:00:20.5]}
51. Rg5+ {[%clk 0:00:23.4]} 51... Kc6 {[%clk 0:00:20.5]} 52. a4 {[%clk
0:00:20.3]} 52... Kb6 {[%clk 0:00:18.6]} 53. Rg6+ {[%clk 0:00:19.2]} 53... Ka5
{[%clk 0:00:18.2]} 54. Rg8 {[%clk 0:00:18.1]} 54... Nd5 {[%clk 0:00:17.4]} 55.
Rb8 {[%clk 0:00:17.4]} 55... Nf4+ {[%clk 0:00:15.8]} 56. Kd2 {[%clk 0:00:17.6]}
56... Nd5 {[%clk 0:00:16]} 57. Rb5+ {[%clk 0:00:17.6]} 57... Ka6 {[%clk
0:00:15.8]} 58. Rxc5 {[%clk 0:00:18.1]} 1-0